Cogmind - Beta 14 @@@ ROGUE MODE // 2025.03.04 @ 13:13:33 Player: Anting Result: Destroyed by G-47 Trooper with Particle Gun Performance ------------- Evolutions (0) 0 Regions Visited (2) 400 Robots Destroyed (38) 190 Value Destroyed (963) 963 Prototype IDs (0) 0 Alien Tech Used (0) 0 Bonus (0) 0 TOTAL SCORE: 1553 Bonus ------- None Cogmind --------- Core Integrity 0/250 Matter 300/300 Energy 246/250 System Corruption 0% Temperature Cool (29) Movement Walking (260) Ox2 Location -10/Mines Parts ------- > --- POWER (1) -------- Ion Engine > --- PROPULSION (2) --- Aluminum Leg Aluminum Leg > --- UTILITY (2) ------ High-capacity Storage Unit Medium Armor Plating > --- WEAPON (2) ------- Assault Rifle Light Cannon > --- INVENTORY (20) --- Ion Engine Light Treads Light Treads Light Treads Aluminum Leg Aluminum Leg Heat Sink Improved Heat Sink Huge Storage Unit Medium Battery (150) Seismic Detector Light Cannon Light Cannon Light Cannon Grenade Launcher Datajack Peak State ------------ > --- POWER ------------ Ion Engine > --- PROPULSION ------- Aluminum Leg Aluminum Leg > --- UTILITY ---------- High-capacity Storage Unit Medium Armor Plating > --- WEAPON ----------- Assault Rifle Assault Rifle > --- INVENTORY -------- Ion Engine Light Treads Light Treads Light Treads Improved Heat Sink Huge Storage Unit Medium Battery Seismic Detector Medium Armor Plating Medium Armor Plating Assault Rifle Light Cannon Light Cannon Light Cannon Grenade Launcher Datajack [Rating: 10] Favorites ----------- Power Ion Engine Engine Ion Engine Propulsion Aluminum Leg Treads Light Treads Leg Aluminum Leg Utility Medium Armor Plating Device Seismic Detector Storage High-capacity Storage Unit Protection Medium Armor Plating Weapon Assault Rifle Ballistic Gun Assault Rifle Ballistic Cannon Light Cannon Launcher Grenade Launcher Build | -11 -10 -10 ------- Run | Yrd Mat Min Slots Evolved . | . . . Power . | . . . Propulsion . | . . . Utility . | . . . Weapon . | . . . Parts Attached 35 | 7 20 8 Power 2 | 1 . 1 Engine 2 | 1 . 1 Core . | . . . Reactor . | . . . Propulsion 15 | 2 12 1 Treads 6 | . 6 . Leg 9 | 2 6 1 Wheel . | . . . Hover . | . . . Flight . | . . . Utility 10 | 2 7 1 Device 2 | 1 1 . Storage 4 | 1 3 . Processor . | . . . Hackware . | . . . Protection 4 | . 3 1 Artifact . | . . . Weapon 8 | 2 1 5 Energy Gun . | . . . Energy Cannon . | . . . Ballistic Gun 6 | 2 1 3 Ballistic Cannon 1 | . . 1 Launcher 1 | . . 1 Special Weapon . | . . . Impact Weapon . | . . . Slashing Weapon . | . . . Piercing Weapon . | . . . Special Melee Weapon . | . . . Unidentified Prototypes . | . . . Parts Lost 9 | . 4 5 Power 1 | . . 1 Propulsion 2 | . 1 1 Utility 3 | . 2 1 Weapon 3 | . 1 2 Highest Loss Streak 2 | . 2 2 To Critical Strikes . | . . . Average Slot Usage (%) 99 | . 99 99 Engine 13 | . 14 13 Treads 1 | . 2 . Leg 26 | . 25 27 Device 3 | . 5 . Storage 14 | . 14 14 Protection 10 | . 8 14 Ballistic Gun 25 | . 28 20 Ballistic Cannon 2 | . . 7 Peak Build Rating 10 | 7 10 10 Average Rating 8 | 4 8 9 On Entrance 5 | . 7 10 Naked Turns . | . . . Heaviest Build 90 | 15 90 57 Greatest Support 40 | 20 40 20 Greatest Overweight (x) 2 | . 2 2 Average Overweight (x) 1 | . 1 2 Largest Inventory Capacity 25 | 8 25 20 Average Capacity 16 | 7 15 20 Most Carried 20 | 5 20 20 Average Carried 12 | 4 10 18 Final Capacity 20 | 8 20 20 Final Carried 20 | 4 20 16 Class Distribution -------------------- 100% | Mutant Dominant Class ---------------- Mutant | -10/Materials Mutant | -10/Mines Resources | -11 -10 -10 ----------- Run | Yrd Mat Min Matter Collected 1093 | 282 629 182 Remotely . | . . . Salvage Created 1292 | 77 1029 186 Parts 88 | 13 66 9 Haulers Intercepted 1 | . 1 . Recyclers Shooed 2 | . 2 . Parts Field Recycled . | . . . Retrieved Matter . | . . . Parts Self-Destructed . | . . . Prevented . | . . . Kills | -11 -10 -10 ------- Run | Yrd Mat Min Combat Hostiles Destroyed 28 | . 21 7 Guns 25 | . 21 4 Cannons 1 | . . 1 AOE 2 | . . 2 Classes Destroyed 9 | 1 8 . Worker 1 | . 1 . Tunneler 4 | 4 . . Hauler 1 | . 1 . Recycler 1 | . 1 . Operator 1 | . 1 . Watcher 2 | . 2 . Swarmer 6 | . 3 3 Grunt 19 | . 15 4 Subdweller 3 | . 3 . Best Kill Streak 5 | 3 5 3 Combat Bots Only 3 | . 3 3 Max Kills in Single Turn 2 | 1 1 2 Gunslinging . | . . . Exploded 2 | . . 2 Melee . | . . . Uniques/NPCs Destroyed . | . . . Combat | -11 -10 -10 -------- Run | Yrd Mat Min Hostile Shots Fired 143 | . 95 48 Missed 37 | . 30 7 Damage Taken 1524 | . 904 620 Core 250 | . 140 110 Absorbed by Shields . | . . . Core Remaining (%) 100 | 100 . . Volleys Fired 101 | 5 76 20 Largest 2 | 2 2 2 Hottest 55 | 40 40 55 Shots Fired 199 | 10 151 38 Gun 192 | 10 151 31 Cannon 6 | . . 6 Launcher 1 | . . 1 Special . | . . . Kinetic 198 | 10 151 37 Thermal . | . . . Explosive 1 | . . 1 Electromagnetic . | . . . Robot Hit Streak 25 | 5 25 14 Robot Miss Streak 4 | 1 4 2 Penetration Max . | . . . Secondary Targets 2 | . 2 . Max Gunslinging Chain 1 | . 1 . Shots Hit Robots 129 | 6 98 25 Core Hits 63 | 4 45 14 Critical Kills . | . . . Critical Parts Destroyed . | . . . Critical Strikes . | . . . Melee Attacks . | . . . Impact . | . . . Slashing . | . . . Piercing . | . . . Sneak Attacks . | . . . Combat Hostiles . | . . . Follow-up Attacks . | . . . Damage Inflicted 1908 | 93 1303 512 Guns 1652 | 93 1277 282 Cannons 81 | . . 81 Explosions 122 | . . 122 Melee . | . . . Ramming 53 | . 26 27 Kinetic 1733 | 93 1277 363 Thermal . | . . . Explosive 122 | . . 122 Electromagnetic . | . . . Impact . | . . . Slashing . | . . . Piercing . | . . . Highest Corruption . | . . . Average Corruption . | . . . Corruption Purged . | . . . Corruption Blocked . | . . . Overload Shots . | . . . Overflow Damage 5 | . . 5 Projectiles . | . . . Explosions 5 | . . 5 Melee . | . . . Knockbacks 1 | . . 1 Impact 1 | . . 1 Kinetic . | . . . Secondary . | . . . Self-Inflicted Damage 8 | . . 8 Shots 1 | . . 1 Rammed . | . . . Targets Rammed 14 | . 7 7 Kicked 14 | . 7 7 Crushed . | . . . Highest Temperature 22 | . 7 22 Average Temperature 5 | . 2 10 Received Heat Transfer 486 | . 252 234 Siege Activations . | . . . Robots Corrupted . | . . . Combat Hostiles . | . . . Parts Fried . | . . . Impact Corruptions . | . . . Robots Melted . | . . . Combat Hostiles . | . . . Parts Melted 1 | . 1 . Heat Transferred . | . . . Parts Sabotaged . | . . . Parts Stolen . | . . . Parts Stripped . | . . . Power Chain Reactions . | . . . Alert | -11 -10 -10 ------- Run | Yrd Mat Min Peak Influence 181 | 20 181 166 Initial 70 | . 13 70 Average 78 | 9 75 89 Maximum Alert Level . | . . . Low Security (%) 100 | 100 100 100 Level 1 . | . . . Level 2 . | . . . Level 3 . | . . . Level 4 . | . . . Level 5 . | . . . High Security . | . . . Max Security . | . . . Squads Dispatched 5 | . 5 . Investigation 4 | . 4 . Extermination . | . . . Reinforcement 1 | . 1 . Assault . | . . . Garrison . | . . . Intercept . | . . . Searches Triggered . | . . . Construction Impeded . | . . . Haulers Reinforced . | . . . Active Scanning Responses . | . . . Cargo Convoy Interrupts . | . . . Stealth | -11 -10 -10 --------- Run | Yrd Mat Min Distress Signals 1 | . 1 . Communications Jammed . | . . . Distress Signals . | . . . Times Spotted 63 | . 35 28 Peak Tracking Total 23 | . 3 23 Tactical Retreats 3 | . 2 1 Traps | -11 -10 -10 ------- Run | Yrd Mat Min Traps Triggered 2 | . 2 . Indirectly . | . . . Trap Hack Attempts . | . . . Triggered . | . . . Disarmed . | . . . Reprogrammed . | . . . Reused . | . . . Traps Extracted . | . . . Installed . | . . . Triggered . | . . . Machines | -11 -10 -10 ---------- Run | Yrd Mat Min Machines Disabled . | . . . Max in Single Turn . | . . . Machines Repaired . | . . . Machines Dismantled . | . . . Machines Sabotaged . | . . . Overloaded Fab Kills . | . . . Hacking | -11 -10 -10 --------- Run | Yrd Mat Min Machines Accessed 8 | . 7 1 Terminals 6 | . 5 1 Fabricators . | . . . Repair Stations . | . . . Recycling Units 2 | . 2 . Scanalyzers . | . . . Garrison Access . | . . . Total Hacks 22 | . 20 2 Successful 10 | . 9 1 Failed 11 | . 10 1 Catastrophic 3 | . 3 . Database Lockouts 1 | . 1 . Manual 21 | . 19 2 Terminals 19 | . 17 2 Fabricators . | . . . Repair Stations . | . . . Recycling Units 3 | . 3 . Scanalyzers . | . . . Garrison Access . | . . . Terminal Hacks 6 | . 5 1 Part Schematic 1 | . 1 . Robot Analysis 3 | . 2 1 Unreport Threat 2 | . 2 . Fabricator Hacks . | . . . Repair Station Hacks . | . . . Recycling Unit Hacks . | . . . Scanalyzer . | . . . Garrison Access Hacks . | . . . Unauthorized Hacks 4 | . 4 . Terminals 2 | . 2 . Botnet 2 | . 2 . Fabricators . | . . . Repair Stations . | . . . Recycling Units 2 | . 2 . Tunnel 2 | . 2 . Scanalyzers . | . . . Garrison Access . | . . . Data Cores Recovered . | . . . Used . | . . . Hacking Detections 7 | . 6 1 Full Trace Events 1 | . 1 . Feedback Events . | . . . Feedback Blocked . | . . . Robot Schematics Acquired . | . . . Robots Built . | . . . Authchips . | . . . Time . | . . . Total Robot Build Rating . | . . . Part Schematics Acquired 1 | . 1 . Parts Built . | . . . Authchips . | . . . Time . | . . . Total Part Build Rating . | . . . Parts Repaired . | . . . Time . | . . . Parts Recycled . | . . . Recycled Matter . | . . . Retrieved Matter . | . . . Retrieved Components . | . . . Parts Scanalyzed . | . . . Part Schematics Acquired . | . . . Parts Damaged . | . . . Bothacking | -11 -10 -10 ------------ Run | Yrd Mat Min Used RIF Installer . | . . . Robots Hacked . | . . . Non-combat . | . . . Combat . | . . . Robot Hacks Applied . | . . . Relay Couplers Released . | . . . Fabnet Peak Effective % . | . . . Robots Rewired . | . . . Allies Hacked . | . . . Hacks Repelled . | . . . Allies | -11 -10 -10 -------- Run | Yrd Mat Min Total Allies . | . . . Largest Group . | . . . Highest-Rated Group . | . . . Highest-Rated Ally . | . . . Total Orders . | . . . Ally Attacks . | . . . Total Damage . | . . . Kills . | . . . Allies Corrupted . | . . . Allies Melted . | . . . Intel | -11 -10 -10 ------- Run | Yrd Mat Min Robot Analysis Total 3 | . 2 1 Derelict Logs Recovered 3 | . . 3 Drone Launches . | . . . Drone Recoveries . | . . . Exploration | -11 -10 -10 ------------- Run | Yrd Mat Min Turns Passed 2958 | 96 1894 968 Spaces Moved 984 | 59 591 334 Core 6 | 6 . . Treads 49 | . 49 . Legs 929 | 53 542 334 Wheels . | . . . Hover . | . . . Flight . | . . . Fastest Speed 50 | 50 120 260 Average Speed 216 | 112 202 260 Slowest Speed 320 | 120 320 260 Overloaded Moves . | . . . Propulsion Burnouts . | . . . Robots Hopped . | . . . Cave-ins Triggered . | . . . Exploration Rate (%) 47 | 3 62 77 Regions Visited 2 Branch Regions 1 Pre-discovered Areas 2 | . 2 . Known Exits Taken . | . . . Unknown Exits Taken 2 | 1 1 . Scrap Searched 3 | . . 3 Spaces Dug . | . . . Terrain Destroyed 5 | . . 5 Melee . | . . . Projectile . | . . . AOE 5 | . . 5 Terrain Rammed . | . . . Walls Destroyed . | . . . Machines Disabled . | . . . Actions | -11 -10 -10 --------- Run | Yrd Mat Min Total 1593 | 76 1132 385 Wait 419 | . 404 15 Move 982 | 58 590 334 Hop . | . . . Pick Up 34 | 6 27 1 Fast Attach 5 | 5 . . Attach 11 | 2 4 5 Detach . | . . . Swap 19 | . 16 3 Drop 8 | . 8 . Fire 101 | 5 76 20 Melee . | . . . Ram . | . . . Kick 14 | . 7 7 Crush . | . . . Escape Stasis . | . . . Rewire . | . . . Trap . | . . . Miscellaneous . | . . . Route ------- -11/Scrapyard -10/Materials (discovered 4 exits: [*Mat x2] / *Min / *Sub) -10/Mines (discovered 2 exits: [*Mat] / Sub) History --------- Turn | Location | Event 6 | -11/Scrapyard | Discovered new exit (range 16) 97 | -11/Scrapyard | Entered Materials 307 | -10/Materials | Build established: Mutant 542 | -10/Materials | Discovered new exit (range 6) 731 | -10/Materials | Discovered new exit (range 7) 797 | -10/Materials | Derelicts attacked the area 1042 | -10/Materials | Discovered new exit (range 6) 1461 | -10/Materials | Discovered new exit (range 16) 1530 | -10/Materials | Central database locked down 1744 | -10/Materials | Core integrity fell below 50% 1991 | -10/Materials | Entered Mines 2145 | -10/Mines | Learned 4 Materials zone layouts 2153 | -10/Mines | Identified exit to Subcaves 2273 | -10/Mines | Found a hidden stash of uninstalled traps 2436 | -10/Mines | Core integrity fell below 20% 2591 | -10/Mines | Learned Materials stockpile data 2944 | -10/Mines | Assembled infested the area 2954 | -10/Mines | Discovered new exit (range 6) 2959 | -10/Mines | Destroyed by G-47 Trooper with Particle Gun Last Messages --------------- 02949_ D-53 Grenadier unfolds itself. 02951_ T-07 Excavator destroyed. 02954_ as-57089 destroyed. 02954_ EXIT=FOUND 02956_ The unstable cave ceiling collapses. 02956_ as-89729 destroyed. 02956_ as-87338 destroyed. 02956_ as-79423 destroyed. 02956_ as-78705 destroyed. 02956_ as-62491 destroyed. 02956_ as-80914 destroyed. 02958_ as-46564 destroyed. 02958_ as-38936 destroyed. 02958_ as-53791 destroyed. 02958_ as-08775 destroyed. 02958_ as-22503 destroyed. 02959_ as-96451 destroyed. 02959_ as-15276 destroyed. 02959_ D-53 Grenadier destroyed. 02959_ Critical hit (Burn: +37). Map ----- +----------------------------------------------------+ | #??????????????????????????? | | ##??????????????????????????? | | ######???????????????????????????? | | ##????????????????????????????????? | | #?????????????????????????????????? | | ###???????????????????????????????? | | #???????????????????????????????? | | #???????????????????????????????? | | # #???????????????????????????????? | | # #???????????????????????????????? | | # #???????????????????????????????? | | # #???????????????????????????????? | | # #???????????????????????????????? | | # #???#####???????????????????????? | | # #?### ##??????#####???????????? | | # ### #####?## ##??????????? | | # % #?# #??????????? | | #### ### ### #???????????? | | ???## ##?# ## #????????????? | | ????## #%#?## #????????????? | | ?????#### #?# ##???????????? | | ######### ### ##??????????? | | # % ##??#######? | | ############ ## #? | | #%#??????????## # #? | | #%#???????????## ! @ #? | | # #????????????#### < g #? | | #+#?????????????# g #? | | # ?????????????# % """ #? | | ?????????????# d """ #? | | # ?????????????# """ ?? | | # ?????????????# %= #######??? | | ?# ?????????????# % a #????????? | | ??#?????????????# ##????????? | | ????????????????# %??????????? | | ???????????????? ??????????? | | ???????????????# % #??????????? | | ??????????????? % a #???????????? | | ??????????????? % %????????????? | | ??????????????? ????????????? | | ??????????????? ?????????????? | | ?????????????????? ??????????????? | | ??????????????????????????????????? | | ??????????????????????????????????? | | ??????????????????????????????????? | | ??????????????????????????????????? | | ??????????????????????????????????? | | ??????????????????????????????????? | | ??????????????????????????????????? | | ??????????????????????????????????? | +----------------------------------------------------+ Best States ------------- Heat Dissipation 25 Energy Generation 10 Energy Capacity 250 Matter Stores 300 Matter Capacity 300 Sight Range 16 Terrain Scan Density 10 Armor Coverage 225 Evasion (%) 55 Recoil Reduction 2 Item Schematics ----------------- Huge Storage Unit | -10/Materials | Hacked Robot Schematics ------------------ None Fabricated ------------ Nothing Alien Tech Used ----------------- None Achievements -------------- None Challenges ------------ None Game ------ Seed ShieldStealthRigger Manual? 0 Play Time 00:17:09 Cumulative 108.9 hours Start 2025.03.04 @ 12:23:00 End 2025.03.04 @ 13:13:33 Sessions 1 Manual Loads 0 Difficulty Rogue Special Mode None Game No. 82 Rogue 82 Adventurer 0 Explorer 0 Win Type - Total 6 Types 5/0/1/0/0/0/0/0/0 Lore% 61 Gallery% 59 Achievement% 56 Wizard Run 0 Options --------- Layout 1 ASCII 0 Keyboard 0 Movement Mouse Keybinds 0 Fullscreen 2 Font 24/Smallcaps Map View 50x35 Zoom Use 0% Tactical HUD 1 Map Filters NONE Filters NONE Steam 1 RUN: cb17a028-c03f-452c-a7b3-654ce63da71b